[Event "Titled Tuesday Blitz April 4 Late 2023"]
[White "Liu, Casper"]
[Black "lolliNOPE"]
[WhiteFideId "1454153"]
[WhiteElo "2221"]
[BlackElo "2145"]
[Result "0-1"]
[Round "06"]
[TimeControl "180+2"]
[Date "2023.04.04"]
[WhiteClock "0:01:08"]
[BlackClock "0:00:23"]

1. d4 {[%clk 0:03:00]}  Nf6 {[%clk 0:02:58]} 2. c4 {[%clk 0:03:01]}  e6 {[%clk 0:02:58]} 3. Nc3 {[%clk 0:03:02]}  Bb4 {[%clk 0:02:58]} 4. Qc2 {[%clk 0:03:02]}  O-O {[%clk 0:02:58]} 5. e4 {[%clk 0:03:01]}  d6 {[%clk 0:02:55]} 6. Bd3 {[%clk 0:03:01]}  e5 {[%clk 0:02:54]} 7. d5 {[%clk 0:02:58]}  Nbd7 {[%clk 0:02:51]} 8. Ne2 {[%clk 0:02:57]}  a5 {[%clk 0:02:49]} 9. O-O {[%clk 0:02:57]}  h6 {[%clk 0:02:43]} 10. a3 {[%clk 0:02:56]}  Bc5 {[%clk 0:02:42]} 11. h3 {[%clk 0:02:50]}  Nh5 {[%clk 0:02:37]} 12. Kh2 {[%clk 0:02:38]}  Qh4 {[%clk 0:02:24]} 13. g3 {[%clk 0:02:35]}  Qe7 {[%clk 0:02:20]} 14. f4 {[%clk 0:02:35]}  exf4 {[%clk 0:02:20]} 15. gxf4 {[%clk 0:02:33]}  g5 {[%clk 0:02:10]} 16. fxg5 {[%clk 0:02:31]}  hxg5 {[%clk 0:02:10]} 17. Bxg5 {[%clk 0:02:29]}  Qe5+ {[%clk 0:02:00]} 18. Nf4 {[%clk 0:02:27]}  Qxg5 {[%clk 0:01:38]} 19. Rg1 {[%clk 0:02:26]}  Bxg1+ {[%clk 0:01:37]} 20. Rxg1 {[%clk 0:02:27]}  Qxg1+ {[%clk 0:01:37]} 21. Kxg1 {[%clk 0:02:28]}  Nxf4 {[%clk 0:01:38]} 22. Bf1 {[%clk 0:02:26]}  Ne5 {[%clk 0:01:36]} 23. Qf2 {[%clk 0:02:24]}  Nfg6 {[%clk 0:01:33]} 24. h4 {[%clk 0:02:22]}  Bg4 {[%clk 0:01:20]} 25. Nb5 {[%clk 0:02:17]}  Nxh4 {[%clk 0:01:12]} 26. Nxc7 {[%clk 0:02:10]}  Rac8 {[%clk 0:01:12]} 27. Nb5 {[%clk 0:02:10]}  f5 {[%clk 0:00:59]} 28. Nxd6 {[%clk 0:01:43]}  fxe4 {[%clk 0:00:58]} 29. Qg3 {[%clk 0:01:42]}  Nhf3+ {[%clk 0:00:50]} 30. Kh1 {[%clk 0:01:37]}  Rc7 {[%clk 0:00:49]} 31. Nxe4 {[%clk 0:01:26]}  Rh7+ {[%clk 0:00:49]} 32. Kg2 {[%clk 0:01:25]}  Rh2+ {[%clk 0:00:46]} 33. Qxh2 {[%clk 0:01:25]}  Nxh2 {[%clk 0:00:46]} 34. Kxh2 {[%clk 0:01:16]}  Rxf1 {[%clk 0:00:45]} 35. c5 {[%clk 0:01:17]}  Bf3 {[%clk 0:00:37]} 36. Nc3 {[%clk 0:01:13]}  Rf2+ {[%clk 0:00:33]} 37. Kg3 {[%clk 0:01:12]}  Rxb2 {[%clk 0:00:32]} 38. Kf4 {[%clk 0:01:12]}  Rb3 {[%clk 0:00:30]} 39. Na4 {[%clk 0:01:08]}  Nd7 {[%clk 0:00:23]} 0-1


[Site "https://www.chess.com"]

[Event "Titled Tuesday Blitz April 4 Late 2023"]
[White "Porat, Tori"]
[Black "Korkmaz, Necmettin"]
[WhiteFideId "30982626"]
[BlackFideId "6303285"]
[WhiteElo "1752"]
[BlackElo "2097"]
[Result "0-1"]
[Round "06"]
[TimeControl "180+2"]
[Date "2023.04.04"]
[WhiteClock "0:00:43"]
[BlackClock "0:00:55"]

1. d4 {[%clk 0:02:58]}  d5 {[%clk 0:02:58]} 2. c4 {[%clk 0:02:55]}  e5 {[%clk 0:02:56]} 3. dxe5 {[%clk 0:02:51]}  d4 {[%clk 0:02:56]} 4. Nf3 {[%clk 0:02:49]}  Nc6 {[%clk 0:02:56]} 5. e3 {[%clk 0:02:47]}  Bb4+ {[%clk 0:02:54]} 6. Bd2 {[%clk 0:02:46]}  dxe3 {[%clk 0:02:48]} 7. fxe3 {[%clk 0:02:45]}  Qe7 {[%clk 0:02:40]} 8. Be2 {[%clk 0:02:39]}  Nxe5 {[%clk 0:02:32]} 9. O-O {[%clk 0:02:27]}  Bxd2 {[%clk 0:02:18]} 10. Nbxd2 {[%clk 0:02:26]}  Ng4 {[%clk 0:02:13]} 11. Qe1 {[%clk 0:02:05]}  Nxe3 {[%clk 0:02:08]} 12. Qg3 {[%clk 0:01:40]}  Nxf1 {[%clk 0:02:03]} 13. Bxf1 {[%clk 0:01:40]}  Nf6 {[%clk 0:01:58]} 14. Re1 {[%clk 0:01:36]}  Be6 {[%clk 0:01:57]} 15. Nd4 {[%clk 0:01:26]}  O-O-O {[%clk 0:01:47]} 16. Nxe6 {[%clk 0:01:23]}  fxe6 {[%clk 0:01:41]} 17. Nf3 {[%clk 0:01:20]}  Rhf8 {[%clk 0:01:25]} 18. a3 {[%clk 0:01:18]}  Kb8 {[%clk 0:01:23]} 19. b4 {[%clk 0:01:17]}  Nh5 {[%clk 0:01:19]} 20. Qg4 {[%clk 0:01:13]}  Nf4 {[%clk 0:01:16]} 21. Re4 {[%clk 0:01:05]}  Qf6 {[%clk 0:01:11]} 22. c5 {[%clk 0:00:59]}  Rd1 {[%clk 0:00:57]} 23. Ne5 {[%clk 0:00:43]}  Nh3+ {[%clk 0:00:55]} 0-1


[Site "https://www.chess.com"]

[Event "Titled Tuesday Blitz April 4 Late 2023"]
[White "LuckyMajky"]
[Black "Leschinsky, Gary"]
[BlackFideId "30951321"]
[WhiteElo "2452"]
[BlackElo "1855"]
[Result "1-0"]
[Round "06"]
[TimeControl "180+2"]
[Date "2023.04.04"]
[WhiteClock "0:00:19"]
[BlackClock "0:00:16"]

1. Nf3 {[%clk 0:03:00]}  d5 {[%clk 0:02:57]} 2. c4 {[%clk 0:03:00]}  d4 {[%clk 0:02:56]} 3. e3 {[%clk 0:03:00]}  c5 {[%clk 0:02:31]} 4. b4 {[%clk 0:02:58]}  Nc6 {[%clk 0:02:29]} 5. b5 {[%clk 0:02:54]}  Nb8 {[%clk 0:02:23]} 6. exd4 {[%clk 0:02:54]}  cxd4 {[%clk 0:02:24]} 7. d3 {[%clk 0:02:53]}  a6 {[%clk 0:02:17]} 8. bxa6 {[%clk 0:02:49]}  Rxa6 {[%clk 0:02:13]} 9. Be2 {[%clk 0:02:48]}  Nc6 {[%clk 0:02:13]} 10. O-O {[%clk 0:02:49]}  e5 {[%clk 0:02:14]} 11. Re1 {[%clk 0:02:49]}  Bd6 {[%clk 0:02:11]} 12. Ng5 {[%clk 0:02:44]}  Nge7 {[%clk 0:02:09]} 13. Bf3 {[%clk 0:02:42]}  O-O {[%clk 0:02:05]} 14. Bxc6 {[%clk 0:02:42]}  Nxc6 {[%clk 0:02:02]} 15. Qh5 {[%clk 0:02:42]}  Bf5 {[%clk 0:01:58]} 16. Ne4 {[%clk 0:02:30]}  Bg6 {[%clk 0:01:55]} 17. Qf3 {[%clk 0:02:26]}  Bb4 {[%clk 0:01:52]} 18. Bd2 {[%clk 0:02:23]}  Be7 {[%clk 0:01:50]} 19. Ng3 {[%clk 0:01:51]}  f5 {[%clk 0:01:40]} 20. Qd5+ {[%clk 0:01:48]}  Kh8 {[%clk 0:01:25]} 21. Qxd8 {[%clk 0:01:39]}  Rxd8 {[%clk 0:01:26]} 22. f4 {[%clk 0:01:39]}  Bf6 {[%clk 0:01:03]} 23. a4 {[%clk 0:01:23]}  Rda8 {[%clk 0:00:53]} 24. a5 {[%clk 0:01:16]}  Kg8 {[%clk 0:00:50]} 25. Na3 {[%clk 0:01:13]}  exf4 {[%clk 0:00:46]} 26. Bxf4 {[%clk 0:00:56]}  Rxa5 {[%clk 0:00:40]} 27. Nc2 {[%clk 0:00:56]}  Rxa1 {[%clk 0:00:39]} 28. Nxa1 {[%clk 0:00:55]}  Nb4 {[%clk 0:00:38]} 29. Rd1 {[%clk 0:00:53]}  Nxd3 {[%clk 0:00:21]} 30. Bd6 {[%clk 0:00:53]}  Nb2 {[%clk 0:00:20]} 31. Rf1 {[%clk 0:00:51]}  d3 {[%clk 0:00:19]} 32. Nb3 {[%clk 0:00:50]}  Ra3 {[%clk 0:00:18]} 33. Bxa3 {[%clk 0:00:50]}  Nxc4 {[%clk 0:00:18]} 34. Bc1 {[%clk 0:00:49]}  Bc3 {[%clk 0:00:17]} 35. Rd1 {[%clk 0:00:42]}  f4 {[%clk 0:00:16]} 36. Bxf4 {[%clk 0:00:41]}  Nb2 {[%clk 0:00:15]} 37. Rf1 {[%clk 0:00:29]}  Bf7 {[%clk 0:00:14]} 38. Nd2 {[%clk 0:00:29]}  Bd4+ {[%clk 0:00:14]} 39. Kh1 {[%clk 0:00:28]}  b5 {[%clk 0:00:15]} 40. Nge4 {[%clk 0:00:27]}  h6 {[%clk 0:00:14]} 41. Bd6 {[%clk 0:00:27]}  Bc4 {[%clk 0:00:14]} 42. Bb4 {[%clk 0:00:25]}  Na4 {[%clk 0:00:13]} 43. h4 {[%clk 0:00:22]}  Nb6 {[%clk 0:00:13]} 44. Rf8+ {[%clk 0:00:21]}  Kh7 {[%clk 0:00:13]} 45. Rd8 {[%clk 0:00:22]}  Nd5 {[%clk 0:00:13]} 46. Nxc4 {[%clk 0:00:20]}  Nxb4 {[%clk 0:00:14]} 47. Rxd4 {[%clk 0:00:20]}  bxc4 {[%clk 0:00:14]} 48. Rxc4 {[%clk 0:00:20]}  Nd5 {[%clk 0:00:15]} 49. Rd4 {[%clk 0:00:20]}  Nf4 {[%clk 0:00:15]} 50. Ng3 {[%clk 0:00:18]}  g5 {[%clk 0:00:15]} 51. h5 {[%clk 0:00:17]}  Kg7 {[%clk 0:00:15]} 52. Kh2 {[%clk 0:00:16]}  Kf6 {[%clk 0:00:16]} 53. Rd6+ {[%clk 0:00:15]}  Ke5 {[%clk 0:00:15]} 54. Rd8 {[%clk 0:00:16]}  Nd5 {[%clk 0:00:14]} 55. Nf1 {[%clk 0:00:15]}  Nf6 {[%clk 0:00:10]} 56. Rxd3 {[%clk 0:00:13]}  Nxh5 {[%clk 0:00:10]} 57. Rh3 {[%clk 0:00:14]}  Nf6 {[%clk 0:00:09]} 58. Kg1 {[%clk 0:00:14]}  Kf5 {[%clk 0:00:10]} 59. Rxh6 {[%clk 0:00:14]}  g4 {[%clk 0:00:10]} 60. Rxf6+ {[%clk 0:00:13]}  Kxf6 {[%clk 0:00:10]} 61. Kf2 {[%clk 0:00:14]}  Kf5 {[%clk 0:00:11]} 62. Kg3 {[%clk 0:00:15]}  Kg5 {[%clk 0:00:12]} 63. Nh2 {[%clk 0:00:16]}  Kf5 {[%clk 0:00:13]} 64. Nxg4 {[%clk 0:00:16]}  Kg5 {[%clk 0:00:13]} 65. Nf2 {[%clk 0:00:17]}  Kg6 {[%clk 0:00:14]} 66. Kf3 {[%clk 0:00:18]}  Kf6 {[%clk 0:00:15]} 67. Kf4 {[%clk 0:00:19]}  Kg6 {[%clk 0:00:16]} 68. g4 {[%clk 0:00:19]} 1-0


[Site "https://www.chess.com"]

[Event "Titled Tuesday Blitz April 4 Late 2023"]
[White "Figorito, Nick"]
[Black "Ai, Evan"]
[WhiteFideId "30923689"]
[BlackFideId "2094770"]
[WhiteElo "2381"]
[BlackElo "1963"]
[Result "1-0"]
[Round "06"]
[TimeControl "180+2"]
[Date "2023.04.04"]
[WhiteClock "0:00:07"]
[BlackClock "0:00:10"]

1. Nf3 {[%clk 0:03:00]}  Nf6 {[%clk 0:02:32]} 2. g3 {[%clk 0:03:00]}  d5 {[%clk 0:02:31]} 3. Bg2 {[%clk 0:03:01]}  c5 {[%clk 0:02:31]} 4. O-O {[%clk 0:03:02]}  Nc6 {[%clk 0:02:32]} 5. d4 {[%clk 0:03:02]}  cxd4 {[%clk 0:02:33]} 6. Nxd4 {[%clk 0:03:03]}  e5 {[%clk 0:02:33]} 7. Nxc6 {[%clk 0:03:04]}  bxc6 {[%clk 0:02:34]} 8. c4 {[%clk 0:03:04]}  Be6 {[%clk 0:02:30]} 9. Nc3 {[%clk 0:03:04]}  Be7 {[%clk 0:02:28]} 10. Bg5 {[%clk 0:02:58]}  e4 {[%clk 0:02:11]} 11. cxd5 {[%clk 0:02:57]}  cxd5 {[%clk 0:02:12]} 12. Qa4+ {[%clk 0:02:53]}  Qd7 {[%clk 0:02:06]} 13. Qxd7+ {[%clk 0:02:52]}  Kxd7 {[%clk 0:02:07]} 14. Rfd1 {[%clk 0:02:50]}  Kc6 {[%clk 0:02:06]} 15. Rac1 {[%clk 0:02:50]}  Kb7 {[%clk 0:01:58]} 16. Bxf6 {[%clk 0:02:47]}  Bxf6 {[%clk 0:01:59]} 17. Nxd5 {[%clk 0:02:47]}  Bxd5 {[%clk 0:01:58]} 18. Rxd5 {[%clk 0:02:46]}  Rac8 {[%clk 0:01:58]} 19. Rxc8 {[%clk 0:02:38]}  Rxc8 {[%clk 0:01:59]} 20. Bxe4 {[%clk 0:02:39]}  Kb6 {[%clk 0:01:50]} 21. Rd7 {[%clk 0:02:25]}  Re8 {[%clk 0:01:43]} 22. f3 {[%clk 0:02:12]}  Re7 {[%clk 0:01:38]} 23. Rxe7 {[%clk 0:02:11]}  Bxe7 {[%clk 0:01:39]} 24. Bxh7 {[%clk 0:02:09]}  Bc5+ {[%clk 0:01:36]} 25. Kg2 {[%clk 0:02:08]}  Bd4 {[%clk 0:01:36]} 26. b3 {[%clk 0:02:07]}  Kc5 {[%clk 0:01:36]} 27. Bg8 {[%clk 0:02:07]}  f6 {[%clk 0:01:36]} 28. a4 {[%clk 0:02:05]}  a5 {[%clk 0:01:33]} 29. h4 {[%clk 0:02:03]}  Be3 {[%clk 0:01:32]} 30. f4 {[%clk 0:01:59]}  Kd4 {[%clk 0:01:30]} 31. Kf3 {[%clk 0:01:59]}  Bd2 {[%clk 0:01:30]} 32. Bc4 {[%clk 0:01:53]}  Be1 {[%clk 0:01:27]} 33. h5 {[%clk 0:01:50]}  Bd2 {[%clk 0:01:23]} 34. e4 {[%clk 0:01:32]}  Be1 {[%clk 0:01:16]} 35. Bd5 {[%clk 0:01:31]}  Bd2 {[%clk 0:01:14]} 36. g4 {[%clk 0:01:22]}  Bc1 {[%clk 0:01:11]} 37. g5 {[%clk 0:01:07]}  fxg5 {[%clk 0:01:12]} 38. f5 {[%clk 0:01:07]}  Ke5 {[%clk 0:01:09]} 39. Kg4 {[%clk 0:01:06]}  Bf4 {[%clk 0:01:06]} 40. Bc4 {[%clk 0:00:54]}  Bd2 {[%clk 0:01:03]} 41. Bd3 {[%clk 0:00:50]}  Bf4 {[%clk 0:00:52]} 42. Bb1 {[%clk 0:00:49]}  Bd2 {[%clk 0:00:52]} 43. Bc2 {[%clk 0:00:49]}  Bf4 {[%clk 0:00:51]} 44. Kf3 {[%clk 0:00:42]}  Bd2 {[%clk 0:00:41]} 45. Ke2 {[%clk 0:00:41]}  Bb4 {[%clk 0:00:39]} 46. Kd3 {[%clk 0:00:39]}  g4 {[%clk 0:00:39]} 47. Bd1 {[%clk 0:00:35]}  Kf4 {[%clk 0:00:30]} 48. Bxg4 {[%clk 0:00:19]}  Kxg4 {[%clk 0:00:31]} 49. f6 {[%clk 0:00:17]}  gxf6 {[%clk 0:00:24]} 50. h6 {[%clk 0:00:17]}  Bf8 {[%clk 0:00:23]} 51. h7 {[%clk 0:00:18]}  Bg7 {[%clk 0:00:24]} 52. b4 {[%clk 0:00:17]}  axb4 {[%clk 0:00:19]} 53. a5 {[%clk 0:00:18]}  f5 {[%clk 0:00:14]} 54. exf5 {[%clk 0:00:17]}  Kxf5 {[%clk 0:00:15]} 55. a6 {[%clk 0:00:17]}  b3 {[%clk 0:00:14]} 56. a7 {[%clk 0:00:16]}  b2 {[%clk 0:00:12]} 57. Kc2 {[%clk 0:00:16]}  Kg6 {[%clk 0:00:13]} 58. a8=Q {[%clk 0:00:16]}  Kxh7 {[%clk 0:00:13]} 59. Qe4+ {[%clk 0:00:16]}  Kg8 {[%clk 0:00:13]} 60. Qe7 {[%clk 0:00:15]}  Kh7 {[%clk 0:00:13]} 61. Qb7 {[%clk 0:00:16]}  Kg6 {[%clk 0:00:14]} 62. Kd3 {[%clk 0:00:16]}  Bf6 {[%clk 0:00:14]} 63. Ke4 {[%clk 0:00:16]}  Kg5 {[%clk 0:00:14]} 64. Qb5+ {[%clk 0:00:16]}  Kg6 {[%clk 0:00:14]} 65. Qf5+ {[%clk 0:00:15]}  Kg7 {[%clk 0:00:14]} 66. Qd7+ {[%clk 0:00:15]}  Kg6 {[%clk 0:00:15]} 67. Qd1 {[%clk 0:00:12]}  Kf7 {[%clk 0:00:14]} 68. Kf5 {[%clk 0:00:12]}  Ke7 {[%clk 0:00:15]} 69. Qe2+ {[%clk 0:00:08]}  Kd8 {[%clk 0:00:11]} 70. Qd3+ {[%clk 0:00:05]}  Ke7 {[%clk 0:00:10]} 71. Qe4+ {[%clk 0:00:06]}  Kd8 {[%clk 0:00:10]} 72. Qd5+ {[%clk 0:00:07]}  Ke7 {[%clk 0:00:10]} 73. Qe6+ {[%clk 0:00:07]} 1-0


[Site "https://www.chess.com"]

[Event "Titled Tuesday Blitz April 4 Late 2023"]
[White "Senthilkumar, Pranav"]
[Black "Kalajzic, Ivan"]
[WhiteFideId "2083477"]
[BlackFideId "14506378"]
[WhiteElo "1860"]
[BlackElo "2203"]
[Result "1-0"]
[Round "06"]
[TimeControl "180+2"]
[Date "2023.04.04"]
[WhiteClock "0:01:51"]
[BlackClock "0:00:04"]

1. d4 {[%clk 0:03:00]}  Nc6 {[%clk 0:02:22]} 2. Nf3 {[%clk 0:02:58]}  d5 {[%clk 0:02:21]} 3. Bf4 {[%clk 0:02:55]}  Bg4 {[%clk 0:02:21]} 4. e3 {[%clk 0:02:52]}  e6 {[%clk 0:02:21]} 5. Bd3 {[%clk 0:02:52]}  Bd6 {[%clk 0:02:21]} 6. Bxd6 {[%clk 0:02:46]}  Qxd6 {[%clk 0:02:20]} 7. Nbd2 {[%clk 0:02:45]}  Nge7 {[%clk 0:02:20]} 8. O-O {[%clk 0:02:46]}  Bf5 {[%clk 0:02:18]} 9. Qe2 {[%clk 0:02:45]}  Bxd3 {[%clk 0:02:18]} 10. Qxd3 {[%clk 0:02:45]}  O-O {[%clk 0:02:18]} 11. c4 {[%clk 0:02:44]}  e5 {[%clk 0:02:03]} 12. cxd5 {[%clk 0:02:32]}  Qxd5 {[%clk 0:02:03]} 13. e4 {[%clk 0:02:32]}  Qd6 {[%clk 0:01:27]} 14. d5 {[%clk 0:02:28]}  Nb4 {[%clk 0:01:24]} 15. Qc3 {[%clk 0:02:25]}  Ng6 {[%clk 0:01:21]} 16. Nc4 {[%clk 0:02:24]}  Qe7 {[%clk 0:01:19]} 17. Ncxe5 {[%clk 0:02:22]}  Nxe5 {[%clk 0:01:18]} 18. Nxe5 {[%clk 0:02:22]}  Na6 {[%clk 0:01:09]} 19. Rfe1 {[%clk 0:02:17]}  Rfe8 {[%clk 0:00:56]} 20. Nd3 {[%clk 0:02:17]}  Rac8 {[%clk 0:00:54]} 21. e5 {[%clk 0:02:14]}  c5 {[%clk 0:00:49]} 22. d6 {[%clk 0:02:13]}  Qe6 {[%clk 0:00:49]} 23. Nf4 {[%clk 0:02:13]}  Qf5 {[%clk 0:00:46]} 24. Nd5 {[%clk 0:02:12]}  Qe6 {[%clk 0:00:32]} 25. Ne7+ {[%clk 0:02:08]}  Rxe7 {[%clk 0:00:33]} 26. dxe7 {[%clk 0:02:09]}  Qxe7 {[%clk 0:00:33]} 27. Rad1 {[%clk 0:02:08]}  b6 {[%clk 0:00:24]} 28. Qd2 {[%clk 0:02:07]}  Re8 {[%clk 0:00:21]} 29. Qd7 {[%clk 0:02:06]}  Kf8 {[%clk 0:00:18]} 30. Qa4 {[%clk 0:01:59]}  Nb8 {[%clk 0:00:15]} 31. Qe4 {[%clk 0:01:54]}  Rd8 {[%clk 0:00:14]} 32. Qxh7 {[%clk 0:01:52]}  f6 {[%clk 0:00:04]} 33. Qh8+ {[%clk 0:01:51]}  Kf7 {[%clk 0:00:04]} 34. Qxd8 {[%clk 0:01:51]} 1-0


[Site "https://www.chess.com"]

[Event "Titled Tuesday Blitz April 4 Late 2023"]
[White "Georg, Heinz"]
[Black "Shapiro, Viktor"]
[WhiteFideId "4607295"]
[BlackFideId "4175700"]
[WhiteElo "2242"]
[BlackElo "2152"]
[Result "0-1"]
[Round "06"]
[TimeControl "180+2"]
[Date "2023.04.04"]
[WhiteClock "0:00:08"]
[BlackClock "0:00:43"]

1. e4 {[%clk 0:02:53]}  Nf6 {[%clk 0:03:00]} 2. e5 {[%clk 0:02:53]}  Nd5 {[%clk 0:03:01]} 3. c4 {[%clk 0:02:53]}  Nb6 {[%clk 0:03:01]} 4. a4 {[%clk 0:02:53]}  a5 {[%clk 0:03:01]} 5. d4 {[%clk 0:02:52]}  d6 {[%clk 0:03:01]} 6. exd6 {[%clk 0:02:53]}  cxd6 {[%clk 0:03:02]} 7. Nc3 {[%clk 0:02:53]}  g6 {[%clk 0:03:02]} 8. Bd3 {[%clk 0:02:53]}  Bg7 {[%clk 0:03:03]} 9. Nge2 {[%clk 0:02:53]}  Nc6 {[%clk 0:03:02]} 10. Be3 {[%clk 0:02:53]}  O-O {[%clk 0:03:02]} 11. O-O {[%clk 0:02:52]}  e5 {[%clk 0:03:02]} 12. d5 {[%clk 0:02:51]}  Nb4 {[%clk 0:03:03]} 13. b3 {[%clk 0:02:49]}  f5 {[%clk 0:03:02]} 14. f4 {[%clk 0:02:38]}  e4 {[%clk 0:02:58]} 15. Bc2 {[%clk 0:02:37]}  Nd7 {[%clk 0:02:58]} 16. Bd4 {[%clk 0:02:33]}  Nc5 {[%clk 0:02:57]} 17. Bxg7 {[%clk 0:02:32]}  Kxg7 {[%clk 0:02:57]} 18. Nd4 {[%clk 0:02:20]}  Qf6 {[%clk 0:02:57]} 19. Ncb5 {[%clk 0:02:15]}  Bd7 {[%clk 0:02:56]} 20. Qd2 {[%clk 0:02:09]}  Rae8 {[%clk 0:02:46]} 21. Rae1 {[%clk 0:02:00]}  Re7 {[%clk 0:02:43]} 22. Re3 {[%clk 0:01:58]}  Kh8 {[%clk 0:02:25]} 23. Bb1 {[%clk 0:01:46]}  Bxb5 {[%clk 0:02:25]} 24. Nxb5 {[%clk 0:01:37]}  Rg7 {[%clk 0:02:23]} 25. Qd4 {[%clk 0:01:29]}  Qxd4 {[%clk 0:02:10]} 26. Nxd4 {[%clk 0:01:29]}  Rf6 {[%clk 0:02:04]} 27. Nb5 {[%clk 0:01:22]}  Kg8 {[%clk 0:02:04]} 28. h4 {[%clk 0:01:16]}  Re7 {[%clk 0:02:02]} 29. Kh2 {[%clk 0:01:13]}  Kf8 {[%clk 0:02:02]} 30. Kh3 {[%clk 0:01:13]}  Ke8 {[%clk 0:02:00]} 31. g4 {[%clk 0:01:12]}  Kd7 {[%clk 0:01:52]} 32. g5 {[%clk 0:01:12]}  Rf8 {[%clk 0:01:51]} 33. Kg3 {[%clk 0:01:11]}  Nca6 {[%clk 0:01:42]} 34. h5 {[%clk 0:01:09]}  Nc7 {[%clk 0:01:41]} 35. Nd4 {[%clk 0:01:07]}  Nba6 {[%clk 0:01:31]} 36. hxg6 {[%clk 0:01:06]}  hxg6 {[%clk 0:01:31]} 37. Rh1 {[%clk 0:01:06]}  Nc5 {[%clk 0:01:29]} 38. Re2 {[%clk 0:01:03]}  Rg7 {[%clk 0:01:21]} 39. Rh6 {[%clk 0:01:00]}  Rfg8 {[%clk 0:01:21]} 40. Reh2 {[%clk 0:00:58]}  Ke7 {[%clk 0:01:20]} 41. Kf2 {[%clk 0:00:55]}  N7a6 {[%clk 0:01:18]} 42. Ke3 {[%clk 0:00:54]}  Nb4 {[%clk 0:01:18]} 43. Rh7 {[%clk 0:00:51]}  Kf7 {[%clk 0:01:16]} 44. Rxg7+ {[%clk 0:00:48]}  Rxg7 {[%clk 0:01:16]} 45. Rh8 {[%clk 0:00:48]}  Ke7 {[%clk 0:01:12]} 46. Nb5 {[%clk 0:00:42]}  Nxb3 {[%clk 0:01:06]} 47. Rc8 {[%clk 0:00:38]}  Nc5 {[%clk 0:00:55]} 48. Rc7+ {[%clk 0:00:38]}  Kf8 {[%clk 0:00:56]} 49. Rc8+ {[%clk 0:00:19]}  Ke7 {[%clk 0:00:56]} 50. Rc7+ {[%clk 0:00:19]}  Nd7 {[%clk 0:00:56]} 51. Nd4 {[%clk 0:00:16]}  Rh7 {[%clk 0:00:51]} 52. Ne6 {[%clk 0:00:10]}  Rh3+ {[%clk 0:00:51]} 53. Kd4 {[%clk 0:00:10]}  b6 {[%clk 0:00:46]} 54. Rb7 {[%clk 0:00:08]}  Rb3 {[%clk 0:00:43]} 0-1


[Site "https://www.chess.com"]

[Event "Titled Tuesday Blitz April 4 Late 2023"]
[White "Vaglio Munoz, Jaime"]
[Black "Chabris, Christopher"]
[WhiteFideId "6500145"]
[BlackFideId "2005263"]
[WhiteElo "2199"]
[BlackElo "2222"]
[Result "1-0"]
[Round "06"]
[TimeControl "180+2"]
[Date "2023.04.04"]
[WhiteClock "0:01:27"]
[BlackClock "0:00:11"]

1. Nf3 {[%clk 0:02:56]}  Nf6 {[%clk 0:02:59]} 2. b3 {[%clk 0:02:56]}  e6 {[%clk 0:02:59]} 3. c4 {[%clk 0:02:56]}  d5 {[%clk 0:02:57]} 4. Bb2 {[%clk 0:02:55]}  Bd6 {[%clk 0:02:56]} 5. g3 {[%clk 0:02:56]}  b6 {[%clk 0:02:55]} 6. Bg2 {[%clk 0:02:56]}  Bb7 {[%clk 0:02:55]} 7. Ne5 {[%clk 0:02:55]}  Nbd7 {[%clk 0:02:52]} 8. Nxd7 {[%clk 0:02:54]}  Qxd7 {[%clk 0:02:48]} 9. Bxf6 {[%clk 0:02:50]}  gxf6 {[%clk 0:02:48]} 10. Nc3 {[%clk 0:02:49]}  c6 {[%clk 0:02:41]} 11. O-O {[%clk 0:02:48]}  h5 {[%clk 0:02:33]} 12. h4 {[%clk 0:02:45]}  O-O-O {[%clk 0:02:31]} 13. d4 {[%clk 0:02:43]}  Rdg8 {[%clk 0:02:28]} 14. e3 {[%clk 0:02:42]}  Qc7 {[%clk 0:01:40]} 15. Qf3 {[%clk 0:02:39]}  f5 {[%clk 0:01:40]} 16. cxd5 {[%clk 0:02:37]}  exd5 {[%clk 0:01:31]} 17. Rac1 {[%clk 0:02:32]}  Qd7 {[%clk 0:01:13]} 18. Nb5 {[%clk 0:02:21]}  Kb8 {[%clk 0:00:42]} 19. Nxd6 {[%clk 0:02:15]}  Qxd6 {[%clk 0:00:42]} 20. Qxf5 {[%clk 0:02:15]}  Ka8 {[%clk 0:00:37]} 21. a4 {[%clk 0:02:04]}  Rg7 {[%clk 0:00:35]} 22. a5 {[%clk 0:02:03]}  Ba6 {[%clk 0:00:31]} 23. Rfe1 {[%clk 0:01:56]}  Rhg8 {[%clk 0:00:30]} 24. axb6 {[%clk 0:01:51]}  axb6 {[%clk 0:00:30]} 25. Qf4 {[%clk 0:01:48]}  Qxf4 {[%clk 0:00:22]} 26. exf4 {[%clk 0:01:49]}  Bd3 {[%clk 0:00:21]} 27. Rxc6 {[%clk 0:01:47]}  Kb7 {[%clk 0:00:21]} 28. Bxd5 {[%clk 0:01:34]}  Rd8 {[%clk 0:00:11]} 29. Bg2 {[%clk 0:01:27]} 1-0


[Site "https://www.chess.com"]

[Event "Titled Tuesday Blitz April 4 Late 2023"]
[White "Moore, Nicholas"]
[Black "Torres Hernandez, Leslie Carolin"]
[WhiteFideId "4303709"]
[BlackFideId "8400504"]
[WhiteElo "2435"]
[BlackElo "1920"]
[Result "1-0"]
[Round "06"]
[TimeControl "180+2"]
[Date "2023.04.04"]
[WhiteClock "0:00:24"]
[BlackClock "0:00:02"]

1. d4 {[%clk 0:03:00]}  Nf6 {[%clk 0:02:58]} 2. c4 {[%clk 0:02:50]}  e6 {[%clk 0:02:58]} 3. Nf3 {[%clk 0:02:48]}  d5 {[%clk 0:02:57]} 4. g3 {[%clk 0:02:48]}  Be7 {[%clk 0:02:35]} 5. Bg2 {[%clk 0:02:44]}  O-O {[%clk 0:01:59]} 6. O-O {[%clk 0:02:45]}  c6 {[%clk 0:01:53]} 7. Qc2 {[%clk 0:02:38]}  Nbd7 {[%clk 0:01:46]} 8. Rd1 {[%clk 0:02:37]}  b6 {[%clk 0:01:31]} 9. b3 {[%clk 0:02:33]}  Bb7 {[%clk 0:01:29]} 10. Nc3 {[%clk 0:02:32]}  Rc8 {[%clk 0:01:22]} 11. e4 {[%clk 0:02:31]}  dxe4 {[%clk 0:01:22]} 12. Ng5 {[%clk 0:02:31]}  Qc7 {[%clk 0:01:20]} 13. Ncxe4 {[%clk 0:02:22]}  Nxe4 {[%clk 0:01:17]} 14. Nxe4 {[%clk 0:02:23]}  Nf6 {[%clk 0:01:10]} 15. Bf4 {[%clk 0:02:22]}  Qd7 {[%clk 0:01:05]} 16. Rac1 {[%clk 0:02:20]}  Rfd8 {[%clk 0:00:46]} 17. h4 {[%clk 0:01:48]}  Qe8 {[%clk 0:00:31]} 18. Be5 {[%clk 0:01:19]}  Nxe4 {[%clk 0:00:19]} 19. Bxe4 {[%clk 0:01:18]}  f5 {[%clk 0:00:19]} 20. Bg2 {[%clk 0:01:12]}  Qf7 {[%clk 0:00:19]} 21. Qe2 {[%clk 0:00:59]}  Ba3 {[%clk 0:00:18]} 22. Rc2 {[%clk 0:00:57]}  c5 {[%clk 0:00:15]} 23. d5 {[%clk 0:00:43]}  exd5 {[%clk 0:00:12]} 24. cxd5 {[%clk 0:00:41]}  Re8 {[%clk 0:00:12]} 25. f4 {[%clk 0:00:36]}  Rcd8 {[%clk 0:00:07]} 26. d6 {[%clk 0:00:35]}  Kh8 {[%clk 0:00:02]} 27. h5 {[%clk 0:00:24]} 1-0


[Site "https://www.chess.com"]